[Event "Late-Titled-Tuesday-Blitz-June-04-2024"]
[Site "Chess.com"]
[Date "2024.06.04"]
[Round "1"]
[White "momotaro77"]
[Black "Hikaru"]
[Result "0-1"]
[WhiteElo "2523"]
[BlackElo "3224"]
[TimeControl "180+1"]
[EndTime "14:06:54 PDT"]
[Termination "Hikaru won by resignation"]

1. e4 {[%clk 0:03:00.9]} 1... c6 {[%clk 0:02:23.1]} 2. d4 {[%clk 0:02:57.3]}
2... d5 {[%clk 0:02:20.5]} 3. exd5 {[%clk 0:02:56.3]} 3... cxd5 {[%clk
0:02:11.5]} 4. Bd3 {[%clk 0:02:56.2]} 4... Nc6 {[%clk 0:02:08.5]} 5. c3 {[%clk
0:02:56.4]} 5... g6 {[%clk 0:02:08.2]} 6. Bf4 {[%clk 0:02:54.1]} 6... Bg7 {[%clk
0:02:04.3]} 7. Nf3 {[%clk 0:02:51.8]} 7... Bg4 {[%clk 0:02:03.3]} 8. Nbd2 {[%clk
0:02:51.4]} 8... e6 {[%clk 0:02:02.2]} 9. O-O {[%clk 0:02:51.3]} 9... Nge7
{[%clk 0:02:02.4]} 10. h3 {[%clk 0:02:51.6]} 10... Bf5 {[%clk 0:02:02.5]} 11.
Be2 {[%clk 0:02:46]} 11... f6 {[%clk 0:01:59.4]} 12. Bh2 {[%clk 0:02:43.8]}
12... g5 {[%clk 0:01:59.6]} 13. Re1 {[%clk 0:02:42.8]} 13... O-O {[%clk
0:01:59.7]} 14. Nf1 {[%clk 0:02:40]} 14... Qc8 {[%clk 0:01:58.7]} 15. Bd3 {[%clk
0:02:39.6]} 15... Bxd3 {[%clk 0:01:57.5]} 16. Qxd3 {[%clk 0:02:40.5]} 16... Ng6
{[%clk 0:01:58.2]} 17. Re2 {[%clk 0:02:38.5]} 17... Qd7 {[%clk 0:01:58.1]} 18.
Rae1 {[%clk 0:02:38.9]} 18... Rae8 {[%clk 0:01:58.9]} 19. Ne3 {[%clk 0:02:38.3]}
19... Re7 {[%clk 0:01:57.6]} 20. Ng4 {[%clk 0:02:37.1]} 20... Rfe8 {[%clk
0:01:55.1]} 21. b4 {[%clk 0:02:37.5]} 21... Nd8 {[%clk 0:01:51.6]} 22. c4 {[%clk
0:02:33.4]} 22... dxc4 {[%clk 0:01:51.4]} 23. Qxc4 {[%clk 0:02:34.3]} 23... Nf7
{[%clk 0:01:51.4]} 24. Nd2 {[%clk 0:02:06]} 24... h5 {[%clk 0:01:44.1]} 25. Ne3
{[%clk 0:02:05]} 25... f5 {[%clk 0:01:39]} 26. Nb3 {[%clk 0:02:01.7]} 26... b6
{[%clk 0:01:39.2]} 27. Nd1 {[%clk 0:01:30.5]} 27... f4 {[%clk 0:01:37.5]} 28. f3
{[%clk 0:01:25.7]} 28... Nd6 {[%clk 0:01:35.3]} 29. Qd3 {[%clk 0:01:11.3]} 29...
Nf5 {[%clk 0:01:35.3]} 30. Kh1 {[%clk 0:00:53.1]} 30... Ngh4 {[%clk 0:01:28.9]}
31. Re4 {[%clk 0:00:46.6]} 31... e5 {[%clk 0:01:23.8]} 32. d5 {[%clk 0:00:43.3]}
32... Nd6 {[%clk 0:01:23.6]} 33. Nc3 {[%clk 0:00:39]} 33... g4 {[%clk
0:01:22.9]} 34. Nd2 {[%clk 0:00:26.3]} 34... g3 {[%clk 0:01:14.1]} 35. Bg1
{[%clk 0:00:24.5]} 35... Ndf5 {[%clk 0:01:14.8]} 36. Nc4 {[%clk 0:00:21.2]}
36... Nxg2 {[%clk 0:01:12.8]} 37. Kxg2 {[%clk 0:00:14.8]} 37... Nh4+ {[%clk
0:01:13]} 38. Kf1 {[%clk 0:00:15.5]} 38... Qxh3+ {[%clk 0:01:13.2]} 39. Ke2
{[%clk 0:00:16.2]} 39... Qg2+ {[%clk 0:01:12.4]} 40. Kd1 {[%clk 0:00:15.3]}
40... Nxf3 {[%clk 0:01:12.1]} 41. R4e2 {[%clk 0:00:13]} 41... Nxe1 {[%clk
0:01:11.6]} 42. Rxe1 {[%clk 0:00:13]} 42... e4 {[%clk 0:01:09.6]} 43. Qf1 {[%clk
0:00:12.2]} 43... Qxf1 {[%clk 0:01:09.7]} 44. Rxf1 {[%clk 0:00:13.1]} 44... Bxc3
{[%clk 0:01:08.2]} 45. Rxf4 {[%clk 0:00:13.2]} 45... e3 {[%clk 0:01:08.7]} 46.
Ke2 {[%clk 0:00:13.7]} 46... Rf7 {[%clk 0:01:08.4]} 47. Rxf7 {[%clk 0:00:13.3]}
47... Kxf7 {[%clk 0:01:08.9]} 48. Nd6+ {[%clk 0:00:12.3]} 48... Ke7 {[%clk
0:01:09.4]} 49. Nxe8 {[%clk 0:00:13.2]} 49... Kxe8 {[%clk 0:01:10.3]} 50. Bxe3
{[%clk 0:00:13.4]} 50... Bxb4 {[%clk 0:01:06.6]} 51. Kf3 {[%clk 0:00:14]} 51...
Bd6 {[%clk 0:01:04.9]} 52. Bg5 {[%clk 0:00:14.6]} 52... Be7 {[%clk 0:01:02.3]}
0-1

[Event "Late-Titled-Tuesday-Blitz-June-04-2024"]
[Site "Chess.com"]
[Date "2024.06.04"]
[Round "1"]
[White "Bob_2004"]
[Black "KVAIDAN"]
[Result "1-0"]
[WhiteElo "2637"]
[BlackElo "2336"]
[TimeControl "180+1"]
[EndTime "14:06:54 PDT"]
[Termination "Bob_2004 won by resignation"]

1. d4 {[%clk 0:03:00.9]} 1... e6 {[%clk 0:03:00.1]} 2. c4 {[%clk 0:03:00.8]}
2... f5 {[%clk 0:03:00.1]} 3. g3 {[%clk 0:02:59.6]} 3... Nf6 {[%clk 0:03:00.2]}
4. Bg2 {[%clk 0:03:00.1]} 4... Be7 {[%clk 0:02:59.5]} 5. Nc3 {[%clk 0:02:58.2]}
5... O-O {[%clk 0:02:59.6]} 6. Nh3 {[%clk 0:02:54.1]} 6... d6 {[%clk 0:02:59.6]}
7. O-O {[%clk 0:02:54.5]} 7... e5 {[%clk 0:02:59.2]} 8. dxe5 {[%clk 0:02:47.8]}
8... dxe5 {[%clk 0:02:58.8]} 9. Qc2 {[%clk 0:02:48.7]} 9... c6 {[%clk
0:02:58.5]} 10. e4 {[%clk 0:02:39.9]} 10... Na6 {[%clk 0:02:53.7]} 11. exf5
{[%clk 0:02:36.9]} 11... Nb4 {[%clk 0:02:54]} 12. Qe2 {[%clk 0:02:35.7]} 12...
Bxf5 {[%clk 0:02:51.1]} 13. Qxe5 {[%clk 0:02:15]} 13... Nd7 {[%clk 0:02:51]} 14.
Qe2 {[%clk 0:02:01.6]} 14... Bd3 {[%clk 0:02:50]} 15. Qe6+ {[%clk 0:02:01.7]}
15... Kh8 {[%clk 0:02:49.8]} 16. Rd1 {[%clk 0:02:01.3]} 16... Nc5 {[%clk
0:02:46.8]} 17. Qe5 {[%clk 0:01:55]} 17... Bd6 {[%clk 0:02:42.8]} 18. Qh5 {[%clk
0:01:44.6]} 18... Bg6 {[%clk 0:02:36.2]} 19. Qg5 {[%clk 0:01:41.8]} 19... Nc2
{[%clk 0:02:33.8]} 20. Rb1 {[%clk 0:01:38.6]} 20... Nb4 {[%clk 0:02:27.5]} 21.
Be3 {[%clk 0:01:28.1]} 21... Bxb1 {[%clk 0:02:24.2]} 22. Rxd6 {[%clk 0:01:21.1]}
22... Qxd6 {[%clk 0:02:12.9]} 23. Bxc5 {[%clk 0:01:20.8]} 23... Qd3 {[%clk
0:02:10.1]} 24. Bxb4 {[%clk 0:01:18.2]} 24... Rf5 {[%clk 0:02:09.6]} 25. Be4
{[%clk 0:00:58.7]} 25... Rxg5 {[%clk 0:01:58.4]} 26. Bxd3 {[%clk 0:00:58.4]}
26... Bxd3 {[%clk 0:01:54.9]} 27. Nxg5 {[%clk 0:00:58.5]} 27... Bxc4 {[%clk
0:01:55.4]} 28. f4 {[%clk 0:00:52.3]} 28... a5 {[%clk 0:01:55.4]} 29. Bd6 {[%clk
0:00:52.1]} 29... b5 {[%clk 0:01:55.4]} 30. a3 {[%clk 0:00:47.8]} 30... h6
{[%clk 0:01:48.7]} 31. Nge4 {[%clk 0:00:45.6]} 31... Re8 {[%clk 0:01:46.4]} 32.
Kf2 {[%clk 0:00:43.5]} 32... Kh7 {[%clk 0:01:44.2]} 33. Ke3 {[%clk 0:00:38.6]}
33... Bd5 {[%clk 0:01:43.4]} 34. Be5 {[%clk 0:00:38]} 34... Be6 {[%clk
0:01:41.1]} 35. Kd4 {[%clk 0:00:35.7]} 35... b4 {[%clk 0:01:41.3]} 36. axb4
{[%clk 0:00:34.8]} 36... axb4 {[%clk 0:01:41.8]} 37. Na4 {[%clk 0:00:35.4]}
37... Ra8 {[%clk 0:01:40]} 38. Nb6 {[%clk 0:00:32.4]} 38... Ra1 {[%clk
0:01:38.7]} 39. Kc5 {[%clk 0:00:32]} 39... Rc1+ {[%clk 0:01:38.4]} 40. Kxb4
{[%clk 0:00:32.3]} 40... Bd5 {[%clk 0:01:37.4]} 41. Nc3 {[%clk 0:00:29.4]} 41...
Bf3 {[%clk 0:01:35.6]} 42. Nc4 {[%clk 0:00:23.1]} 42... Rh1 {[%clk 0:01:35.1]}
43. h4 {[%clk 0:00:23.2]} 43... Rg1 {[%clk 0:01:35.3]} 44. f5 {[%clk 0:00:22.1]}
44... Bg4 {[%clk 0:01:32.4]} 45. Ne3 {[%clk 0:00:21.1]} 45... Bf3 {[%clk
0:01:32]} 46. Kc5 {[%clk 0:00:20.7]} 46... Re1 {[%clk 0:01:32.2]} 47. Bf4 {[%clk
0:00:21]} 47... Rh1 {[%clk 0:01:27.3]} 48. b4 {[%clk 0:00:21]} 48... Rh2 {[%clk
0:01:27.2]} 49. Na4 {[%clk 0:00:18.5]} 49... Ra2 {[%clk 0:01:26.8]} 50. Nb6
{[%clk 0:00:18.5]} 50... Be4 {[%clk 0:01:20.7]} 51. Nbc4 {[%clk 0:00:18.5]}
51... Bf3 {[%clk 0:01:19.3]} 52. Ne5 {[%clk 0:00:18.9]} 52... Ra1 {[%clk
0:01:16.1]} 53. Nxf3 {[%clk 0:00:19]} 53... Rc1+ {[%clk 0:01:15.2]} 54. Kb6
{[%clk 0:00:19.1]} 54... Rc3 {[%clk 0:01:14.2]} 55. Nd4 {[%clk 0:00:17.1]} 55...
Kg8 {[%clk 0:01:13.2]} 56. Nxc6 {[%clk 0:00:17.4]} 56... Kf7 {[%clk 0:01:12.3]}
57. b5 {[%clk 0:00:17.9]} 1-0

[Event "Late-Titled-Tuesday-Blitz-June-04-2024"]
[Site "Chess.com"]
[Date "2024.06.04"]
[Round "1"]
[White "Polish_fighter3000"]
[Black "CDOEspiao"]
[Result "1-0"]
[WhiteElo "3072"]
[BlackElo "2517"]
[TimeControl "180+1"]
[EndTime "14:06:55 PDT"]
[Termination "Polish_fighter3000 won by resignation"]

1. e4 {[%clk 0:03:00.9]} 1... c5 {[%clk 0:02:59.1]} 2. a3 {[%clk 0:02:59.3]}
2... Nf6 {[%clk 0:02:57.2]} 3. e5 {[%clk 0:02:57.6]} 3... Nd5 {[%clk 0:02:57.3]}
4. Nc3 {[%clk 0:02:58.1]} 4... e6 {[%clk 0:02:55.9]} 5. Nxd5 {[%clk 0:02:41.7]}
5... exd5 {[%clk 0:02:56.8]} 6. Qf3 {[%clk 0:02:41.9]} 6... Nc6 {[%clk 0:02:33]}
7. Qxd5 {[%clk 0:02:40.5]} 7... Qc7 {[%clk 0:02:33.4]} 8. Nf3 {[%clk 0:02:39.7]}
8... d6 {[%clk 0:02:33.7]} 9. Bb5 {[%clk 0:02:34.7]} 9... Be6 {[%clk 0:02:31.6]}
10. Qe4 {[%clk 0:02:32.1]} 10... d5 {[%clk 0:02:28.4]} 11. Qf4 {[%clk 0:02:23]}
11... Be7 {[%clk 0:02:26.8]} 12. O-O {[%clk 0:02:22.4]} 12... O-O {[%clk
0:02:26.6]} 13. d4 {[%clk 0:02:19.7]} 13... cxd4 {[%clk 0:02:17.7]} 14. Bd3
{[%clk 0:02:11.6]} 14... h6 {[%clk 0:02:08.6]} 15. Re1 {[%clk 0:02:11.3]} 15...
Rfe8 {[%clk 0:02:05.4]} 16. Qg3 {[%clk 0:02:10.9]} 16... Kh8 {[%clk 0:02:00.8]}
17. b4 {[%clk 0:02:09.1]} 17... a6 {[%clk 0:01:56.2]} 18. Bb2 {[%clk 0:02:08.2]}
18... Qb6 {[%clk 0:01:41.9]} 19. h4 {[%clk 0:02:02.4]} 19... Bf8 {[%clk
0:01:39.9]} 20. Qf4 {[%clk 0:02:01.6]} 20... a5 {[%clk 0:01:35.5]} 21. b5 {[%clk
0:02:01.1]} 21... Ne7 {[%clk 0:01:15.5]} 22. Bxd4 {[%clk 0:01:51.3]} 22... Qc7
{[%clk 0:01:15.9]} 23. a4 {[%clk 0:01:48.3]} 23... Qd7 {[%clk 0:01:09.8]} 24. h5
{[%clk 0:01:45.5]} 24... Bf5 {[%clk 0:01:05.3]} 25. Qxh6+ {[%clk 0:01:38.8]}
25... gxh6 {[%clk 0:01:03.3]} 26. e6+ {[%clk 0:01:39]} 26... Bg7 {[%clk
0:00:59]} 27. exd7 {[%clk 0:01:39.9]} 27... Bxd7 {[%clk 0:00:58.6]} 28. Ne5
{[%clk 0:01:29.6]} 28... Be6 {[%clk 0:00:54.8]} 29. Re2 {[%clk 0:01:26.8]} 29...
Kg8 {[%clk 0:00:55]} 30. Rae1 {[%clk 0:01:26]} 30... Nf5 {[%clk 0:00:46]} 31.
Bb6 {[%clk 0:01:25.1]} 31... Rac8 {[%clk 0:00:38.1]} 32. Kh2 {[%clk 0:01:21.9]}
32... Nd6 {[%clk 0:00:31.7]} 33. Bxa5 {[%clk 0:01:21.5]} 33... Ra8 {[%clk
0:00:26.2]} 34. Bc7 {[%clk 0:01:13.2]} 34... Ne4 {[%clk 0:00:26]} 35. Bxe4
{[%clk 0:01:09.5]} 35... dxe4 {[%clk 0:00:26.9]} 36. Rxe4 {[%clk 0:01:09.3]}
36... Bf5 {[%clk 0:00:27.5]} 37. Rf4 {[%clk 0:01:04.3]} 37... Bxc2 {[%clk
0:00:26.5]} 38. a5 {[%clk 0:01:00.9]} 38... Rac8 {[%clk 0:00:22.5]} 39. b6
{[%clk 0:00:59.9]} 39... Re6 {[%clk 0:00:12.6]} 40. Re3 {[%clk 0:00:58.6]} 40...
Bf8 {[%clk 0:00:06.1]} 41. Rg3+ {[%clk 0:00:57.5]} 41... Bg7 {[%clk 0:00:05.4]}
42. Rxf7 {[%clk 0:00:56.7]} 42... Rxe5 {[%clk 0:00:04.8]} 43. Rgxg7+ {[%clk
0:00:56.4]} 1-0

[Event "Late-Titled-Tuesday-Blitz-June-04-2024"]
[Site "Chess.com"]
[Date "2024.06.04"]
[Round "1"]
[White "katharinareinecke"]
[Black "Cambek64"]
[Result "0-1"]
[WhiteElo "1968"]
[BlackElo "2530"]
[TimeControl "180+1"]
[EndTime "14:06:56 PDT"]
[Termination "Cambek64 won on time"]

1. d4 {[%clk 0:02:58.4]} 1... Nf6 {[%clk 0:02:38.8]} 2. Nf3 {[%clk 0:02:57.7]}
2... c5 {[%clk 0:02:36.6]} 3. g3 {[%clk 0:02:56.5]} 3... cxd4 {[%clk 0:02:35.6]}
4. Nxd4 {[%clk 0:02:57.4]} 4... e5 {[%clk 0:02:31]} 5. Nf5 {[%clk 0:02:52.1]}
5... d5 {[%clk 0:02:30.5]} 6. e4 {[%clk 0:02:46.1]} 6... Nxe4 {[%clk 0:02:25]}
7. Ne3 {[%clk 0:02:34.2]} 7... d4 {[%clk 0:02:16.1]} 8. Nc4 {[%clk 0:02:19.5]}
8... Nc6 {[%clk 0:02:10.9]} 9. Bg2 {[%clk 0:02:16.3]} 9... Nd6 {[%clk
0:02:11.3]} 10. Nbd2 {[%clk 0:02:02.3]} 10... Nxc4 {[%clk 0:02:08]} 11. Nxc4
{[%clk 0:02:01.8]} 11... Bd6 {[%clk 0:02:03.9]} 12. O-O {[%clk 0:01:58.8]} 12...
O-O {[%clk 0:02:04.2]} 13. Re1 {[%clk 0:01:46.5]} 13... Be6 {[%clk 0:01:59.8]}
14. Nxd6 {[%clk 0:01:40.2]} 14... Qxd6 {[%clk 0:01:59]} 15. c3 {[%clk
0:01:35.1]} 15... Bd5 {[%clk 0:01:56.9]} 16. cxd4 {[%clk 0:01:29.2]} 16... Bxg2
{[%clk 0:01:53.7]} 17. Kxg2 {[%clk 0:01:25.2]} 17... Nxd4 {[%clk 0:01:53.5]} 18.
Be3 {[%clk 0:01:21.3]} 18... Qc6+ {[%clk 0:01:47]} 19. f3 {[%clk 0:01:06.5]}
19... Nc2 {[%clk 0:01:46.3]} 20. Rc1 {[%clk 0:00:33.8]} 20... Nxe1+ {[%clk
0:01:43.5]} 21. Qxe1 {[%clk 0:00:34.7]} 21... Qd5 {[%clk 0:01:42.2]} 22. b3
{[%clk 0:00:30.9]} 22... Rfc8 {[%clk 0:01:34]} 23. Rd1 {[%clk 0:00:29]} 23...
Rc2+ {[%clk 0:01:31]} 24. Bf2 {[%clk 0:00:23.3]} 24... Qe6 {[%clk 0:01:08.9]}
25. Qe4 {[%clk 0:00:20.9]} 25... Rc6 {[%clk 0:01:05.1]} 26. Qd3 {[%clk
0:00:18.3]} 26... h6 {[%clk 0:00:58.8]} 27. Be3 {[%clk 0:00:13.1]} 27... a6
{[%clk 0:00:54.9]} 28. Qe4 {[%clk 0:00:10.4]} 28... f5 {[%clk 0:00:51.9]} 29.
Qd3 {[%clk 0:00:10.2]} 29... Re8 {[%clk 0:00:51.5]} 30. Qd7 {[%clk 0:00:09.2]}
30... Qxd7 {[%clk 0:00:48.4]} 31. Rxd7 {[%clk 0:00:10.1]} 31... Rc2+ {[%clk
0:00:47.2]} 32. Kh3 {[%clk 0:00:09.1]} 32... b5 {[%clk 0:00:45.1]} 33. a4 {[%clk
0:00:07.7]} 33... bxa4 {[%clk 0:00:44.3]} 34. bxa4 {[%clk 0:00:08.6]} 34... Ra2
{[%clk 0:00:43.8]} 35. Bc5 {[%clk 0:00:03.4]} 35... Rxa4 {[%clk 0:00:41.4]} 36.
Bd6 {[%clk 0:00:02.7]} 36... Rd4 {[%clk 0:00:40.9]} 0-1

[Event "Late-Titled-Tuesday-Blitz-June-04-2024"]
[Site "Chess.com"]
[Date "2024.06.04"]
[Round "1"]
[White "SilverCityIndigo"]
[Black "frederiksvane"]
[Result "0-1"]
[WhiteElo "2469"]
[BlackElo "2885"]
[TimeControl "180+1"]
[EndTime "14:07:01 PDT"]
[Termination "frederiksvane won by resignation"]

1. d4 {[%clk 0:02:59.5]} 1... Nf6 {[%clk 0:02:58]} 2. c4 {[%clk 0:03:00.1]} 2...
e6 {[%clk 0:02:58.2]} 3. Nf3 {[%clk 0:03:00.8]} 3... d5 {[%clk 0:02:58.5]} 4.
Nc3 {[%clk 0:03:00.9]} 4... Nbd7 {[%clk 0:02:58.6]} 5. cxd5 {[%clk 0:03:00]}
5... exd5 {[%clk 0:02:57.7]} 6. Bf4 {[%clk 0:03:00.5]} 6... Nb6 {[%clk 0:02:57]}
7. e3 {[%clk 0:03:00.7]} 7... Bd6 {[%clk 0:02:57.4]} 8. Bd3 {[%clk 0:02:59.6]}
8... O-O {[%clk 0:02:56.9]} 9. O-O {[%clk 0:02:59.6]} 9... Bxf4 {[%clk 0:02:56]}
10. exf4 {[%clk 0:03:00.5]} 10... Bg4 {[%clk 0:02:56.5]} 11. Be2 {[%clk
0:02:59]} 11... Bxf3 {[%clk 0:02:55.5]} 12. Bxf3 {[%clk 0:02:58.8]} 12... c6
{[%clk 0:02:55.5]} 13. g3 {[%clk 0:02:59.1]} 13... Nc4 {[%clk 0:02:55.5]} 14. b3
{[%clk 0:02:52.3]} 14... Nd6 {[%clk 0:02:54]} 15. Qd3 {[%clk 0:02:50.1]} 15...
Re8 {[%clk 0:02:50]} 16. Rfe1 {[%clk 0:02:48.3]} 16... Qa5 {[%clk 0:02:45]} 17.
Re5 {[%clk 0:02:41]} 17... Nd7 {[%clk 0:02:42.9]} 18. Re3 {[%clk 0:02:28.8]}
18... Rxe3 {[%clk 0:02:40.8]} 19. fxe3 {[%clk 0:02:26]} 19... Re8 {[%clk
0:02:40.5]} 20. a3 {[%clk 0:01:55.2]} 20... g6 {[%clk 0:02:39.6]} 21. Ra2 {[%clk
0:01:55]} 21... Qd8 {[%clk 0:02:35.7]} 22. Kg2 {[%clk 0:01:52.3]} 22... Qe7
{[%clk 0:02:35.1]} 23. Re2 {[%clk 0:01:51.6]} 23... Nf6 {[%clk 0:02:35.2]} 24.
g4 {[%clk 0:01:50.7]} 24... a5 {[%clk 0:02:31.5]} 25. Na4 {[%clk 0:01:44.1]}
25... Nfe4 {[%clk 0:02:28.9]} 26. Nc5 {[%clk 0:01:29]} 26... b6 {[%clk
0:02:01.1]} 27. Na4 {[%clk 0:01:25.7]} 27... Qb7 {[%clk 0:01:59.7]} 28. Rc2
{[%clk 0:01:18.4]} 28... Re6 {[%clk 0:01:58.7]} 29. h4 {[%clk 0:00:45.7]} 29...
Nb5 {[%clk 0:01:55.8]} 30. h5 {[%clk 0:00:40.5]} 30... Nxa3 {[%clk 0:01:52.2]}
31. Rc1 {[%clk 0:00:37.5]} 31... Nb5 {[%clk 0:01:51.9]} 32. hxg6 {[%clk
0:00:33.8]} 32... hxg6 {[%clk 0:01:50.5]} 33. f5 {[%clk 0:00:28.5]} 33... Qc7
{[%clk 0:01:30.6]} 34. Kf1 {[%clk 0:00:16.4]} 34... Qg3 {[%clk 0:01:08.8]} 35.
Qe2 {[%clk 0:00:14.4]} 35... Nxd4 {[%clk 0:00:43.8]} 36. exd4 {[%clk 0:00:09.4]}
36... Nd2+ {[%clk 0:00:42.5]} 37. Qxd2 {[%clk 0:00:09.9]} 37... Qxf3+ {[%clk
0:00:42.7]} 38. Qf2 {[%clk 0:00:04.9]} 38... Qd3+ {[%clk 0:00:43.3]} 39. Kg1
{[%clk 0:00:03.4]} 39... Re2 {[%clk 0:00:44]} 40. Rc3 {[%clk 0:00:02.1]} 40...
Qd1+ {[%clk 0:00:40.5]} 41. Kg2 {[%clk 0:00:02.1]} 41... Rxf2+ {[%clk
0:00:40.4]} 42. Kxf2 {[%clk 0:00:03]} 42... Qxd4+ {[%clk 0:00:40.7]} 43. Kf3
{[%clk 0:00:03.7]} 43... b5 {[%clk 0:00:39.9]} 0-1

[Event "Late-Titled-Tuesday-Blitz-June-04-2024"]
[Site "Chess.com"]
[Date "2024.06.04"]
[Round "1"]
[White "Itay121"]
[Black "OIAM03"]
[Result "1-0"]
[WhiteElo "2536"]
[BlackElo "2045"]
[TimeControl "180+1"]
[EndTime "14:07:02 PDT"]
[Termination "Itay121 won on time"]

1. e4 {[%clk 0:03:00]} 1... c5 {[%clk 0:02:57.3]} 2. Nf3 {[%clk 0:02:59.1]} 2...
d6 {[%clk 0:02:57.1]} 3. b4 {[%clk 0:02:58.7]} 3... cxb4 {[%clk 0:02:53.7]} 4.
d4 {[%clk 0:02:57.2]} 4... Nf6 {[%clk 0:02:50.7]} 5. Bd3 {[%clk 0:02:56.1]} 5...
e6 {[%clk 0:02:49.9]} 6. a3 {[%clk 0:02:55.6]} 6... Be7 {[%clk 0:02:48.5]} 7.
O-O {[%clk 0:02:53.9]} 7... O-O {[%clk 0:02:48]} 8. axb4 {[%clk 0:02:53.3]} 8...
a6 {[%clk 0:02:47.8]} 9. c3 {[%clk 0:02:48.1]} 9... Nc6 {[%clk 0:02:46.4]} 10.
Re1 {[%clk 0:02:44.3]} 10... b5 {[%clk 0:02:44.3]} 11. Nbd2 {[%clk 0:02:36]}
11... Bb7 {[%clk 0:02:32.1]} 12. Qc2 {[%clk 0:02:29.9]} 12... e5 {[%clk
0:02:22.5]} 13. d5 {[%clk 0:02:28.8]} 13... Nb8 {[%clk 0:02:22.5]} 14. Nb3
{[%clk 0:02:29.3]} 14... Nbd7 {[%clk 0:02:21.1]} 15. Na5 {[%clk 0:02:29.7]}
15... Qc7 {[%clk 0:02:14.4]} 16. Nh4 {[%clk 0:02:25.8]} 16... Nb6 {[%clk
0:02:07.8]} 17. Nf5 {[%clk 0:02:24.1]} 17... Rfe8 {[%clk 0:02:01.3]} 18. Qb1
{[%clk 0:02:20.3]} 18... Bc8 {[%clk 0:01:53.4]} 19. Re3 {[%clk 0:02:18.6]} 19...
Bxf5 {[%clk 0:01:51.4]} 20. exf5 {[%clk 0:02:18.7]} 20... Nbxd5 {[%clk
0:01:51.1]} 21. Rg3 {[%clk 0:02:17.6]} 21... Nxc3 {[%clk 0:01:50.4]} 22. Qc2
{[%clk 0:02:15.5]} 22... Nfd5 {[%clk 0:01:47.1]} 23. f6 {[%clk 0:02:12.1]} 23...
Bxf6 {[%clk 0:01:44.5]} 24. Bxh7+ {[%clk 0:02:09.2]} 24... Kf8 {[%clk
0:01:43.9]} 25. Bb2 {[%clk 0:02:07.3]} 25... Na4 {[%clk 0:01:24.7]} 26. Qxc7
{[%clk 0:01:52.4]} 26... Nxc7 {[%clk 0:01:24.2]} 27. Bc1 {[%clk 0:01:51.2]}
27... e4 {[%clk 0:01:22.4]} 28. Raa3 {[%clk 0:01:49]} 28... Nd5 {[%clk
0:01:16.8]} 29. h4 {[%clk 0:01:38.6]} 29... Rac8 {[%clk 0:01:14.6]} 30. Bd2
{[%clk 0:01:34.4]} 30... Rc2 {[%clk 0:01:09]} 31. Bg5 {[%clk 0:01:27.2]} 31...
Be5 {[%clk 0:01:02.9]} 32. Rg4 {[%clk 0:01:21.7]} 32... Rec8 {[%clk 0:01:00]}
33. g3 {[%clk 0:01:18.5]} 33... f6 {[%clk 0:00:57]} 34. Bxe4 {[%clk 0:01:15.9]}
34... Re2 {[%clk 0:00:31.3]} 35. Bxd5 {[%clk 0:01:13.2]} 35... fxg5 {[%clk
0:00:31.1]} 36. Rf3+ {[%clk 0:01:13.2]} 36... Ke7 {[%clk 0:00:28.6]} 37. Nc6+
{[%clk 0:01:10.4]} 37... Ke8 {[%clk 0:00:16.6]} 38. Rxg5 {[%clk 0:01:07.3]}
38... Bf6 {[%clk 0:00:16.5]} 39. Rh5 {[%clk 0:01:02.4]} 39... Kd7 {[%clk
0:00:09]} 40. Rh7 {[%clk 0:00:56.9]} 40... Rxc6 {[%clk 0:00:08.6]} 41. Rxf6
{[%clk 0:00:51.6]} 41... Rc1+ {[%clk 0:00:08]} 42. Kg2 {[%clk 0:00:51.9]} 42...
Kc7 {[%clk 0:00:05.5]} 43. Rxg7+ {[%clk 0:00:51.8]} 1-0

[Event "Late-Titled-Tuesday-Blitz-June-04-2024"]
[Site "Chess.com"]
[Date "2024.06.04"]
[Round "1"]
[White "jefferyx"]
[Black "dosto07"]
[Result "1-0"]
[WhiteElo "3087"]
[BlackElo "2519"]
[TimeControl "180+1"]
[EndTime "14:07:06 PDT"]
[Termination "jefferyx won by resignation"]

1. e4 {[%clk 0:02:57.8]} 1... e5 {[%clk 0:02:59.3]} 2. Nf3 {[%clk 0:02:57.8]}
2... Nc6 {[%clk 0:02:59]} 3. Nc3 {[%clk 0:02:58]} 3... Nf6 {[%clk 0:02:58.5]} 4.
d4 {[%clk 0:02:58.6]} 4... exd4 {[%clk 0:02:57.9]} 5. Nxd4 {[%clk 0:02:59.5]}
5... Bb4 {[%clk 0:02:57.9]} 6. Nxc6 {[%clk 0:03:00]} 6... bxc6 {[%clk
0:02:58.4]} 7. Bd3 {[%clk 0:03:00.6]} 7... d5 {[%clk 0:02:58.7]} 8. exd5 {[%clk
0:03:01.5]} 8... O-O {[%clk 0:02:58.8]} 9. O-O {[%clk 0:03:02.1]} 9... cxd5
{[%clk 0:02:59.4]} 10. h3 {[%clk 0:03:02]} 10... c6 {[%clk 0:02:59.9]} 11. Qf3
{[%clk 0:03:02.5]} 11... Be6 {[%clk 0:02:54.7]} 12. Bf4 {[%clk 0:03:00.1]} 12...
Bd6 {[%clk 0:02:54.6]} 13. Ne2 {[%clk 0:03:00]} 13... Qb8 {[%clk 0:02:49.9]} 14.
b3 {[%clk 0:03:00]} 14... Re8 {[%clk 0:02:48.8]} 15. Rfd1 {[%clk 0:02:57.9]}
15... c5 {[%clk 0:02:40.1]} 16. c3 {[%clk 0:02:49.5]} 16... a5 {[%clk
0:02:39.8]} 17. Bc2 {[%clk 0:02:48.7]} 17... Ne4 {[%clk 0:02:22.5]} 18. Bxd6
{[%clk 0:02:28.9]} 18... Nxd6 {[%clk 0:02:09.7]} 19. Nf4 {[%clk 0:02:28.8]}
19... a4 {[%clk 0:01:44.8]} 20. Nxd5 {[%clk 0:02:28.3]} 20... axb3 {[%clk
0:01:40.5]} 21. axb3 {[%clk 0:02:29.2]} 21... Rxa1 {[%clk 0:01:39.8]} 22. Rxa1
{[%clk 0:02:30.1]} 22... Qb7 {[%clk 0:01:35.8]} 23. Rd1 {[%clk 0:02:29.3]} 23...
Qa7 {[%clk 0:01:28.6]} 24. Nf4 {[%clk 0:02:28]} 24... Nf5 {[%clk 0:01:20.7]} 25.
Nxe6 {[%clk 0:02:27]} 25... fxe6 {[%clk 0:01:21]} 26. Bxf5 {[%clk 0:02:21.8]}
26... exf5 {[%clk 0:01:21.2]} 27. Qxf5 {[%clk 0:02:22.7]} 27... Rf8 {[%clk
0:01:19.4]} 28. Qe5 {[%clk 0:01:49.3]} 28... h6 {[%clk 0:01:11.2]} 29. Rd3
{[%clk 0:01:27.1]} 29... Qa2 {[%clk 0:00:42.8]} 30. Qd5+ {[%clk 0:01:06.9]}
30... Kh8 {[%clk 0:00:42.2]} 31. Rf3 {[%clk 0:01:02.4]} 31... Rxf3 {[%clk
0:00:40.6]} 32. Qxf3 {[%clk 0:01:03.3]} 32... Qxb3 {[%clk 0:00:39]} 33. Qf8+
{[%clk 0:01:03.5]} 33... Kh7 {[%clk 0:00:38.7]} 34. Qxc5 {[%clk 0:01:04.4]}
34... Qd1+ {[%clk 0:00:36.7]} 35. Kh2 {[%clk 0:01:04.5]} 35... Qc2 {[%clk
0:00:36.1]} 36. Qd4 {[%clk 0:01:01.9]} 36... Kh8 {[%clk 0:00:34.2]} 37. c4
{[%clk 0:01:02.1]} 37... Qc1 {[%clk 0:00:30.9]} 38. c5 {[%clk 0:01:02.2]} 38...
Qc2 {[%clk 0:00:30.6]} 39. f3 {[%clk 0:01:01.4]} 39... Qc1 {[%clk 0:00:30.2]}
40. Qd6 {[%clk 0:01:01.1]} 40... h5 {[%clk 0:00:23.9]} 41. c6 {[%clk 0:00:57.8]}
41... h4 {[%clk 0:00:22.5]} 42. Qd8+ {[%clk 0:00:57.6]} 42... Kh7 {[%clk
0:00:22]} 43. Qxh4+ {[%clk 0:00:58.5]} 43... Kg6 {[%clk 0:00:21.1]} 44. Qg3+
{[%clk 0:00:58.3]} 44... Kf7 {[%clk 0:00:20.4]} 45. Qd6 {[%clk 0:00:56.5]} 45...
Qc4 {[%clk 0:00:18.9]} 46. c7 {[%clk 0:00:56.2]} 46... Qc3 {[%clk 0:00:16.8]}
47. h4 {[%clk 0:00:42.1]} 47... Qc1 {[%clk 0:00:15.2]} 48. Qd7+ {[%clk
0:00:40.7]} 48... Kf6 {[%clk 0:00:13.3]} 49. c8=Q {[%clk 0:00:40.6]} 49... Qf4+
{[%clk 0:00:13.3]} 50. Kh3 {[%clk 0:00:39.8]} 1-0